Cogmind - Beta 17 @@@ ROGUE MODE // 2026.07.01 @ 17:19:53 Player: AngelSpirit Result: Destroyed by 1X-CSY(R) with Subdweller Laser Performance ------------- Evolutions (0) 0 Regions Visited (2) 400 Robots Destroyed (22) 110 Value Destroyed (334) 334 Prototype IDs (4) 80 Alien Tech Used (0) 0 Bonus (-36) -36 TOTAL SCORE: 888 Bonus ------- Friendly Fire -36 Cogmind --------- Core Integrity 0/250 Matter 290/300 Energy 85/100 System Corruption 0% Temperature Cool (6) Movement Rolling (150) Ox4 Location -10/Subcaves Parts ------- > --- POWER (1) -------- (None) > --- PROPULSION (2) --- Subdweller Monowheel Aerolev Unit (fused) > --- UTILITY (2) ------ Huge Storage Unit Self-contained Transmogrifier > --- WEAPON (2) ------- Flail (fused) Flail (fused) > --- INVENTORY (25) --- Meta Core Light Treads Light Treads Light Treads Wheel Compact Wheel High-capacity Storage Unit High-capacity Matter Pod (200) Sensor Array Seismic Detector Riot Gun Grenade Launcher Datajack Mining Laser Multitool Peak State ------------ > --- POWER ------------ Improved Ion Engine > --- PROPULSION ------- Armored Wheel Aerolev Unit > --- UTILITY ---------- Huge Storage Unit Self-contained Transmogrifier > --- WEAPON ----------- Light Cannon Axe > --- INVENTORY -------- Meta Core Light Treads Light Treads Light Treads Wheel Compact Wheel High-capacity Storage Unit High-capacity Matter Pod Sensor Array Seismic Detector EM Pulse Gun Riot Gun Grenade Launcher Datajack Mining Laser Multitool [Rating: 25] Favorites ----------- Power Light Ion Engine Engine Light Ion Engine Propulsion Compact Wheel Treads Light Treads Wheel Compact Wheel Hover Unit Aerolev Unit Utility Huge Storage Unit Device Seismic Detector Storage Huge Storage Unit Weapon Assault Rifle Energy Gun EM Pulse Gun Ballistic Gun Assault Rifle Ballistic Cannon Light Cannon Launcher Grenade Launcher Impact Weapon Flail Slashing Weapon Axe Build | -11 -10 -10 ------- Run | Yrd Mat Sub Slots Evolved . | . . . Power . | . . . Propulsion . | . . . Utility . | . . . Weapon . | . . . Parts Attached 19 | 7 4 8 Power 1 | 1 . . Engine 1 | 1 . . Core . | . . . Reactor . | . . . Propulsion 6 | 2 2 2 Treads 3 | . 2 1 Leg . | . . . Wheel 3 | 2 . 1 Hover . | . . . Flight . | . . . Utility 5 | 2 1 2 Device 3 | 1 . 2 Storage 2 | 1 1 . Processor . | . . . Hackware . | . . . Protection . | . . . Artifact . | . . . Weapon 7 | 2 1 4 Energy Gun 2 | . . 2 Energy Cannon . | . . . Ballistic Gun 2 | 2 . . Ballistic Cannon 2 | . . 2 Launcher 1 | . 1 . Special Weapon . | . . . Impact Weapon . | . . . Slashing Weapon . | . . . Piercing Weapon . | . . . Special Melee Weapon . | . . . Unidentified Prototypes 1 | . . 1 Parts Lost 2 | . . 2 Power 1 | . . 1 Propulsion 1 | . . 1 Utility . | . . . Weapon . | . . . Highest Loss Streak 1 | . . 1 To Critical Strikes . | . . . Average Backups 10 | 1 8 14 Power . | . . . Propulsion 3 | 1 3 4 Utility 2 | . 1 3 Weapon 3 | . 2 3 Tool/Special . | . . . Unused Backups 9 | . . 9 Power . | . . . Propulsion 3 | . . 3 Utility 2 | . . 2 Weapon 1 | . . 1 Tool/Special 3 | . . 3 Average Slot Usage (%) 99 | . 100 97 Engine 13 | . 14 12 Treads 5 | . 2 9 Wheel 21 | . 25 14 Hover 1 | . . 3 Device 14 | . 14 14 Storage 14 | . 14 14 Ballistic Gun 20 | . 27 7 Ballistic Cannon 5 | . . 14 Impact Weapon 1 | . . 4 Peak Build Rating 25 | 7 8 25 Average Rating 10 | 5 7 16 On Entrance 5 | . 7 8 Avg Prop Armor Cover (%) 11 | . 12 11 Naked Turns . | . . . Heaviest Build 93 | 13 89 93 Greatest Support 40 | 32 40 24 Greatest Overweight (x) 7 | . 2 7 Average Overweight (x) 2 | . 1 5 Largest Inventory Capacity 25 | 8 25 25 Average Capacity 23 | 7 23 25 Most Carried 17 | 3 12 17 Average Carried 10 | 1 8 14 Final Capacity 25 | 8 25 25 Final Carried 15 | 3 12 15 Transmogrified Parts 7 | . . 7 Integrity Recovered 36 | . . 36 Class Distribution -------------------- 100% | Mutant Dominant Class ---------------- Mutant | -10/Materials Mutant | -10/Subcaves Resources | -11 -10 -10 ----------- Run | Yrd Mat Sub Matter Collected 1152 | 278 612 262 Remotely . | . . . Salvage Created 495 | 36 330 129 Parts 41 | 7 27 7 Haulers Intercepted 1 | . 1 . Recyclers Shooed . | . . . Parts Field Recycled . | . . . Retrieved Matter . | . . . Parts Self-Destructed 4 | . . 4 Prevented . | . . . Parts Restored . | . . . Kills | -11 -10 -10 ------- Run | Yrd Mat Sub Combat Hostiles Destroyed 14 | . 8 6 Guns 6 | . 6 . AOE 5 | . 2 3 Classes Destroyed 9 | 1 6 2 Worker 2 | . 2 . Tunneler 2 | 2 . . Hauler 1 | . 1 . Recycler 1 | . 1 . Watcher 2 | . 2 . Swarmer 9 | . 6 3 Grunt 2 | . 2 . Artisan 1 | . . 1 Subdweller 3 | . . 3 Best Kill Streak 3 | 2 3 3 Combat Bots Only 3 | . 3 3 Max Kills in Single Turn 3 | 1 3 2 Gunslinging . | . . . Exploded 2 | . 2 2 Melee . | . . . Uniques/NPCs Destroyed . | . . . Combat | -11 -10 -10 -------- Run | Yrd Mat Sub Hostile Shots Fired 80 | . 29 51 Missed 27 | . 9 18 Hits 53 | . 20 33 Projectile 53 | . 20 33 Damage Taken 872 | . 184 688 Core 257 | . 28 229 Absorbed by Shields . | . . . Core Remaining (%) 100 | 100 . . Volleys Fired 55 | 6 38 11 Largest 2 | 2 2 2 Hottest 90 | 40 40 90 Shots Fired 97 | 12 72 13 Gun 83 | 12 68 3 Cannon 5 | . . 5 Launcher 9 | . 4 5 Special . | . . . Kinetic 85 | 12 68 5 Thermal . | . . . Explosive 9 | . 4 5 Electromagnetic 3 | . . 3 Robot Hit Streak 7 | 2 6 7 Robot Miss Streak 4 | 3 4 4 Penetration Max . | . . . Secondary Targets 1 | . 1 . Max Gunslinging Chain 1 | . 1 . Shots Hit Robots 67 | 5 34 28 Core Hits 24 | 2 18 4 Critical Kills . | . . . Critical Parts Destroyed 3 | . 1 2 Critical Strikes 4 | . 1 3 Destroy 1 | . 1 . Smash 3 | . . 3 Melee Attacks 25 | . . 25 Impact 25 | . . 25 Slashing . | . . . Piercing . | . . . Sneak Attacks . | . . . Combat Hostiles . | . . . Follow-up Attacks 2 | . . 2 Damage Inflicted 1580 | 65 531 984 Guns 477 | 65 400 12 Cannons 33 | . . 33 Explosions 345 | . 131 214 Melee 725 | . . 725 Ramming . | . . . Kinetic 498 | 65 400 33 Thermal . | . . . Explosive 345 | . 131 214 Electromagnetic 12 | . . 12 Impact 725 | . . 725 Slashing . | . . . Piercing . | . . . Highest Corruption . | . . . Average Corruption . | . . . Corruption Purged . | . . . Corruption Blocked . | . . . Overload Shots . | . . . Overflow Damage 114 | . 17 97 Projectiles . | . . . Explosions 21 | . 17 4 Melee 93 | . . 93 Knockbacks 3 | . . 3 Impact 3 | . . 3 Kinetic . | . . . Secondary . | . . . Self-Inflicted Damage 52 | . 21 31 Shots 2 | . 1 1 Rammed . | . . . Targets Rammed . | . . . Kicked . | . . . Crushed . | . . . Highest Temperature . | . . . Average Temperature . | . . . Received Heat Transfer 60 | . 12 48 Siege Activations . | . . . Martial Activations . | . . . Shielding Activations . | . . . Robots Disrupted . | . . . Combat Hostiles . | . . . Robots Corrupted 3 | . . 3 Combat Hostiles 3 | . . 3 Parts Fried 3 | . . 3 Impact Corruptions 5 | . . 5 Robots Melted . | . . . Combat Hostiles . | . . . Parts Melted . | . . . Heat Transferred . | . . . Parts Sabotaged . | . . . Parts Stolen . | . . . Parts Stripped . | . . . Power Chain Reactions . | . . . Alert | -11 -10 -10 ------- Run | Yrd Mat Sub Maximum Alert Level . | . . . Low Security (%) 100 | 100 100 . Level 1 . | . . . Level 2 . | . . . Level 3 . | . . . Level 4 . | . . . Level 5 . | . . . High Security . | . . . Max Security . | . . . Peak Influence 128 | 10 128 . Initial . | . . . Average 49 | . 53 . Influence Increases 454 | 10 374 70 Destroy 0b10 Robot/C 220 | . 160 60 Destroy 0b10 Robot/NC 40 | 10 30 . Destroy Leader 46 | . 36 10 Successful Hack 24 | . 24 . Select Force Hacks 60 | . 60 . Destroy Structure 34 | . 34 . Lose Combat Pursuer 30 | . 30 . Influence Decreases 454 | 10 374 70 Time Decay 454 | 10 374 70 Squads Dispatched 3 | . 3 . Investigation 3 | . 3 . Extermination . | . . . Reinforcement . | . . . Assault . | . . . Garrison . | . . . Intercept . | . . . Searches Triggered . | . . . Construction Impeded . | . . . Haulers Reinforced . | . . . Active Scanning Responses . | . . . Cargo Convoy Interrupts . | . . . Stealth | -11 -10 -10 --------- Run | Yrd Mat Sub Distress Signals 1 | . 1 . Communications Jammed . | . . . Distress Signals . | . . . Times Spotted 24 | . 16 8 Peak Tracking Total 5 | . 5 3 Tactical Retreats 3 | . 2 1 Traps | -11 -10 -10 ------- Run | Yrd Mat Sub Traps Triggered 2 | . 1 1 Indirectly . | . . . Trap Hack Attempts . | . . . Triggered . | . . . Disarmed . | . . . Reprogrammed . | . . . Reused . | . . . Traps Extracted . | . . . Installed . | . . . Triggered . | . . . Machines | -11 -10 -10 ---------- Run | Yrd Mat Sub Machines Disabled 2 | . . 2 Max in Single Turn 1 | . . 1 Machines Repaired . | . . . Machines Dismantled . | . . . Machines Sabotaged . | . . . Overloaded Fab Kills . | . . . Hacking | -11 -10 -10 --------- Run | Yrd Mat Sub Machines Accessed 10 | . 10 . Terminals 7 | . 7 . Fabricators . | . . . Repair Stations 1 | . 1 . Recycling Units 2 | . 2 . Scanalyzers . | . . . Garrison Access . | . . . Total Hacks 27 | . 27 . Successful 13 | . 13 . Failed 14 | . 14 . Catastrophic 4 | . 4 . Database Lockouts . | . . . Manual 19 | . 19 . Terminals 18 | . 18 . Fabricators . | . . . Repair Stations 3 | . 3 . Recycling Units 6 | . 6 . Scanalyzers . | . . . Garrison Access . | . . . Terminal Hacks 3 | . 3 . Prototype ID Bank 1 | . 1 . Locate Traps 2 | . 2 . Fabricator Hacks . | . . . Repair Station Hacks . | . . . Recycling Unit Hacks 1 | . 1 . Retrieve Components 1 | . 1 . Scanalyzer . | . . . Garrison Access Hacks . | . . . Unauthorized Hacks 9 | . 9 . Terminals 7 | . 7 . Botnet 1 | . 1 . Operators 1 | . 1 . Skim 5 | . 5 . Fabricators . | . . . Repair Stations . | . . . Recycling Units 2 | . 2 . Tunnel 2 | . 2 . Scanalyzers . | . . . Garrison Access . | . . . Data Cores Recovered . | . . . Used . | . . . Hacking Detections 9 | . 9 . Full Trace Events 1 | . 1 . Feedback Events . | . . . Feedback Blocked . | . . . Robot Schematics Acquired . | . . . Robots Built . | . . . Authchips . | . . . Time . | . . . Total Robot Build Rating . | . . . Part Schematics Acquired . | . . . Parts Built . | . . . Authchips . | . . . Time . | . . . Total Part Build Rating . | . . . Part Studies Acquired . | . . . Parts Repaired . | . . . Time . | . . . Parts Recycled . | . . . Recycled Matter . | . . . Retrieved Matter . | . . . Retrieved Components 4 | . 4 . Parts Scanalyzed . | . . . Part Schematics Acquired . | . . . Parts Damaged . | . . . Bothacking | -11 -10 -10 ------------ Run | Yrd Mat Sub Used RIF Installer . | . . . Robots Hacked . | . . . Non-combat . | . . . Combat . | . . . Robot Hacks Applied . | . . . Relay Couplers Released . | . . . Fabnet Peak Effective % . | . . . Robots Rewired . | . . . Allies Hacked . | . . . Hacks Repelled . | . . . Allies | -11 -10 -10 -------- Run | Yrd Mat Sub Total Allies . | . . . Largest Group . | . . . Highest-Rated Group . | . . . Highest-Rated Ally . | . . . Total Orders . | . . . Ally Attacks . | . . . Total Damage . | . . . Kills . | . . . Allies Corrupted . | . . . Allies Melted . | . . . Intel | -11 -10 -10 ------- Run | Yrd Mat Sub Active Infowar (turns) 1200 | 15 971 214 Sensors 196 | . . 196 Seismic 1004 | 15 971 18 Robot Analysis Total . | . . . Derelict Logs Recovered . | . . . Drone Launches . | . . . Drone Recoveries . | . . . Exploration | -11 -10 -10 ------------- Run | Yrd Mat Sub Turns Passed 1636 | 77 972 587 Spaces Moved 857 | 47 554 256 Core 3 | 3 . . Treads 11 | . 11 . Legs . | . . . Wheels 843 | 44 543 256 Hover . | . . . Flight . | . . . Fastest Speed 50 | 50 100 135 Average Speed 143 | 96 130 180 Slowest Speed 320 | 100 320 195 Overloaded Moves . | . . . Propulsion Burnouts . | . . . Robots Hopped . | . . . Potential Cave-ins . | . . . Cave-ins Triggered . | . . . Exploration Rate (%) 36 | 3 87 19 Regions Visited 2 Branch Regions 1 Pre-discovered Areas 2 | . 2 . Known Exits Taken 1 | . 1 . Unknown Exits Taken 1 | 1 . . Scrap Searched 3 | . . 3 Spaces Dug 27 | . 27 . Terrain Destroyed 46 | . 31 15 Melee . | . . . Projectile . | . . . AOE 46 | . 31 15 Terrain Rammed . | . . . Walls Destroyed . | . . . Machines Disabled . | . . . Actions | -11 -10 -10 --------- Run | Yrd Mat Sub Total 1114 | 62 723 329 Wait 117 | . 101 16 Move 855 | 46 553 256 Hop . | . . . Pick Up 19 | 3 9 7 Fast Attach 8 | 7 . 1 Attach 2 | . 1 1 Detach 1 | . 1 . Swap 31 | . 19 12 Drop 4 | . 1 3 Fire 55 | 6 38 11 Melee 22 | . . 22 Ram . | . . . Kick . | . . . Crush . | . . . Escape Stasis . | . . . Rewire . | . . . Trap . | . . . Miscellaneous . | . . . Route ------- -11/Scrapyard -10/Materials (discovered 5 exits: [*Mat x3] / [*Min] / *Sub) -10/Subcaves (discovered 2 exits: *Mat x2) History --------- Turn | Location | Event 13 | -11/Scrapyard | Discovered new exit (range 15) 78 | -11/Scrapyard | Entered Materials 113 | -10/Materials | Discovered new exit (range 16) 308 | -10/Materials | Build established: Mutant 345 | -10/Materials | Discovered new exit (range 9) 576 | -10/Materials | Discovered new exit (range 4) 797 | -10/Materials | Discovered new exit (range 12) 949 | -10/Materials | Identified exit to Subcaves 995 | -10/Materials | Learned Storage trap positions 1029 | -10/Materials | Learned location of 1 exit from Recycling 1050 | -10/Materials | Entered Subcaves 1051 | -10/Subcaves | Identified exit to Materials 1232 | -10/Subcaves | Visited 4L-MR0's lab 1255 | -10/Subcaves | Found Prototype Power Core 1259 | -10/Subcaves | Found Prototype Device 1264 | -10/Subcaves | Identified Sfc. Transmogrifier 1521 | -10/Subcaves | Core integrity fell below 50% 1627 | -10/Subcaves | Core integrity fell below 20% 1637 | -10/Subcaves | Destroyed by 1X-CSY(R) with Subdweller Laser Last Messages --------------- 01550_ Acquired Sub. Monowheel. 01555_ Triggered Piercing Trap. 01555_ Spikes shoot up from the floor. 01555_ Imp. Ion Engine destroyed. 01591_ Sfc. Transmogrifier converts Lgt. Cannon into Flail. 01610_ US-3M5(R) knocked back. 01615_ Flail follow-up attack on 1X-CSY(R). 01618_ Flail follow-up attack on US-3M5(R). 01621_ US-3M5(R) suffers critical hit (Smash). 01621_ Destroyed Sub. Power Source. 01621_ US-3M5(R) system corrupted by crushing effect. 01627_ Arm. Wheel destroyed. 01633_ US-3M5(R) suffers critical hit (Smash). 01633_ Destroyed Scrap Shield. 01633_ US-3M5(R) system corrupted by crushing effect. 01634_ US-3M5(R) system terminally corrupted. 01634_ Sub. Monowheel fried. Map ----- +----------------------------------------------------+ | ???????????????### #?????????????????????????? | | ???????????????# #%####???????????????????????? | | ???????????????#""&" #???????????????????????? | | ???????????????#" %"" #???????????????????????? | | ???????????????##" %"##???????????????????????? | | ????????????????#" "#######?????????????????? | | ????????????????#" ## #???##?#??????????? | | ????????????????# #??##"# ???????????? | | ????????????????#^ ## #??"" ????????????? | | ????????????????#^ #### #?? ?????????????? | | ???????????????#^ "#### ### #??????????????? | | ??????????????# ^ ^ "#"" "#??????????????? | | ??????????????######""""" " "#??????????????? | | ???????????????????#"### #""" ###?##"#????????? | | ???????????????????# #?###### #"" "##???????? | | ???????????????????#"#???#""" "%""#???????? | | ???????????????????#"# ### " """###???????? | | ???????????????????""" " # # ""##?????????? | | ?????????????????? " "## " ### #??????????? | | ???????????????????????###"" ##?? #??????????? | | ????????????????????????# " #?? #??????????? | | ????????????????????????### #??? #??????????? | | ??????????????????#######?# #???? ??????????? | | ????????????????###"""""### #???? ?????????? | | ????????????????#" " %[ #????? ?????????? | | ????????????????""""""@ R #?????? ????????? | | ???????????????# "##### #???????????????? | | ???????????????????????## ####???????????????? | | ????????????????????????# #??????????????????? | | ????????????????????????## #?????????????????? | | ?????????????????????????# #????????????????? | | ?????????????????????????## ???????????????? | | ???????????????????????????# ??????????????? | | ????????????????????????????## #?????????????? | | ?????????????????????????????? #?????????????? | | ??????????????????????????????? #?????????????? | | ???????????????????????????????? ?????????????? | | ???????????????????????????????? #????????????? | | ??????????????????????????????????????????????? | | ??????????????????????????????????????????????? | | ??????????????????????????????????????????????? | | ??????????????????????????????????????????????? | | ??????????????????????????????????????????????? | | ??????????????????????????????????????????????? | | ??????????????????????????????????????????????? | | ??????????????????????????????????????????????? | | ??????????????????????????????????????????????? | | ??????????????????????????????????????????????? | | ??????????????????????????????????????????????? | | ??????????????????????????????????????????????? | +----------------------------------------------------+ Best States ------------- Heat Dissipation 25 Energy Generation 12 Energy Capacity 265 Matter Stores 300 Matter Capacity 300 Sight Range 16 Robot Scan Range 14 Terrain Scan Density 10 Evasion (%) 40 Recoil Reduction 2 Item Schematics ----------------- None Robot Schematics ------------------ None Fabricated ------------ Nothing Repaired ---------- Nothing Studied --------- None Alien Tech Used ----------------- None Achievements -------------- None Challenges ------------ None Game ------ Seed CentriumSmallTreads Manual? 0 Play Time 00:13:53 Cumulative 942.5 hours Start 2026.07.01 @ 17:09:53 End 2026.07.01 @ 17:19:53 Sessions 1 Manual Loads 0 Difficulty Rogue Special Mode None Game No. 262 Rogue 262 Adventurer 0 Explorer 0 Win Type - Total 39 Types 12/8/9/1/2/0/3/1/1/2 Lore% 96 Gallery% 90 Achievement% 86 Wizard Run 0 Options --------- Layout 1 ASCII 0 Keyboard 0 Movement Mouse Keybinds 0 Fullscreen 2 Font 32/SmallcapsGlow Map View 50x35 Zoom Use 0% Tactical HUD 1 Map Filters NONE Filters NONE Steam 1 RUN: 8223c88a-b0b2-448e-b027-a7de7b1cbe4b